bitfinex-derivatives/quotes_BTCF0:USTF0_20250720
["timestamp","ask_amount","ask_price","bid_price","bid_amount"]
[1752997317070,0.6609896,118130.0,118120.0,0.29240734]
[1752997317363,0.78863256,118130.0,118120.0,0.87900734]
[1752997319070,0.6609896,118130.0,118120.0,0.87900734]
[1752997319270,0.78863256,118130.0,118120.0,0.75136438]
[1752997319469,0.78863256,118130.0,118120.0,0.87900734]
[1752997320165,0.6609896,118130.0,118120.0,0.87900734]
[1752997320367,0.78863256,118130.0,118120.0,0.87900734]
[1752997320568,0.42783256,118130.0,118120.0,0.87900734]
[1752997320774,0.42783256,118130.0,118120.0,0.75136438]
[1752997320972,0.42783256,118130.0,118120.0,0.87900734]
[1752997321167,0.42783256,118130.0,118120.0,0.28753734]
[1752997321369,0.42783256,118130.0,118120.0,0.29240734]
[1752997321564,0.42783256,118130.0,118120.0,0.16476438]
[1752997321765,0.42783256,118130.0,118120.0,0.29240734]
[1752997322272,0.42783256,118130.0,118120.0,0.16476438]
[1752997322477,0.3001896,118130.0,118120.0,0.29240734]
[1752997322665,0.42783256,118130.0,118120.0,0.29240734]
[1752997323269,0.2364496,118130.0,118120.0,0.33399768]
[1752997323475,0.2149996,118130.0,118120.0,0.5892836]
[1752997323770,0.2125396,118130.0,118120.0,0.27328294]
[1752997323978,0.2125396,118130.0,118120.0,0.52856886]
[1752997324168,0.2125396,118130.0,118120.0,0.33401489]
[1752997324673,0.2125396,118130.0,118120.0,0.58719081]
[1752997324874,0.2125396,118130.0,118120.0,0.52645886]
[1752997325070,0.2125396,118130.0,118120.0,1.09090172]
[1752997325573,0.1702333,118130.0,118120.0,1.09090172]
[1752997326073,0.1702333,118130.0,118120.0,1.09301172]
[1752997326273,0.1702333,118130.0,118120.0,0.71008284]
[1752997326572,0.1702333,118130.0,118120.0,0.96536876]
[1752997327173,0.1702333,118130.0,118120.0,0.71008284]
[1752997327573,0.1702333,118130.0,118120.0,1.09301172]
[1752997327772,0.1702333,118130.0,118120.0,0.71008284]
[1752997327973,0.1702333,118130.0,118120.0,0.96536876]
[1752997336374,0.1702333,118130.0,118120.0,0.71008284]
[1752997336572,0.1702333,118130.0,118120.0,0.96536876]
[1752997337272,0.1702333,118130.0,118120.0,0.71008284]
[1752997337477,0.1702333,118130.0,118120.0,0.96536876]
[1752997338770,0.1702333,118130.0,118120.0,0.71008284]
[1752997338971,0.1702333,118130.0,118120.0,0.96536876]
[1752997339181,0.38520626,118130.0,118120.0,1.57020876]
[1752997339380,0.51284922,118130.0,118120.0,0.09549954]
[1752997339576,0.87364922,118130.0,118120.0,0.01949964]
[1752997339883,0.9791633,118130.0,118120.0,0.01949964]
[1752997340183,1.23444922,118130.0,118120.0,0.01949964]
[1752997340480,0.9791633,118130.0,118120.0,0.01949964]
[1752997340681,1.23444922,118130.0,118120.0,0.01949964]
[1752997342781,0.9791633,118130.0,118120.0,0.01949964]
[1752997343272,1.1495242,118130.0,118120.0,0.01949964]
[1752997344782,0.9791633,118130.0,118120.0,0.01949964]
[1752997344982,1.1495242,118130.0,118120.0,0.01949964]
[1752997346782,0.9791633,118130.0,118120.0,0.01949964]
[1752997346978,1.1495242,118130.0,118120.0,0.01949964]
[1752997349084,0.9791633,118130.0,118120.0,0.01949964]
[1752997349286,1.1495242,118130.0,118120.0,0.01949964]
[1752997354685,0.9791633,118130.0,118120.0,0.01949964]
[1752997354889,1.1495242,118130.0,118120.0,0.01949964]
[1752997357293,1.1495242,118130.0,118120.0,0.00211]
[1752997357686,0.4279242,118130.0,118120.0,0.00211]
[1752997357991,1.1495242,118130.0,118120.0,0.00211]
[1752997359386,1.1495242,118130.0,118120.0,0.01938138]
[1752997361194,0.9791633,118130.0,118120.0,0.01938138]
[1752997361589,1.1495242,118130.0,118120.0,0.01938138]
[1752997361796,0.9791633,118130.0,118120.0,0.01938138]
[1752997361983,1.1495242,118130.0,118120.0,0.01938138]
[1752997363094,1.5832033,118130.0,118120.0,0.04222138]
[1752997363393,1.7535642,118130.0,118120.0,0.04222138]
[1752997363694,1.0319642,118130.0,118120.0,0.01938138]
[1752997363894,1.7535642,118130.0,118120.0,0.01938138]
[1752997364889,1.0319642,118130.0,118120.0,0.01938138]
[1752997365090,1.71096067,118130.0,118120.0,0.01938138]
[1752997365694,0.98936067,118130.0,118120.0,0.01938138]
[1752997365994,1.71096067,118130.0,118120.0,0.01938138]
[1752997367401,1.10692067,118130.0,118120.0,0.01938138]
[1752997367603,1.71000067,118130.0,118120.0,0.01938138]
[1752997368902,1.5822433,118130.0,118120.0,0.01938138]
[1752997369100,1.60052806,118130.0,118120.0,0.01938138]
[1752997369300,1.72828543,118130.0,118120.0,0.01938138]
[1752997370897,1.8560428,118130.0,118120.0,0.01938138]
[1752997371304,1.60052806,118130.0,118120.0,0.01938138]
[1752997371602,1.72828543,118130.0,118120.0,0.01938138]
[1752997372705,1.60052806,118130.0,118120.0,0.00211]
[1752997372907,1.72828543,118130.0,118120.0,0.01939221]
[1752997373096,1.72828543,118130.0,118120.0,0.01728221]
[1752997373296,1.8560428,118130.0,118120.0,1e-08]
[1752997373499,0.2521177,118110.0,118100.0,0.27508205]
[1752997373804,0.98988507,118110.0,118100.0,0.27508205]
[1752997375006,0.98988507,118110.0,118100.0,0.27951205]
[1752997375206,0.98988507,118110.0,118100.0,0.28151205]
[1752997377108,0.8621277,118110.0,118100.0,0.15375468]
[1752997377308,0.98988507,118110.0,118100.0,0.28151205]
[1752997377512,1.35068507,118110.0,118100.0,0.28151205]
[1752997378409,1.35068507,118110.0,118100.0,0.15375468]
[1752997378708,1.35068507,118110.0,118100.0,0.28151205]
[1752997379107,1.35068507,118110.0,118100.0,0.15375468]
[1752997379309,1.2229277,118110.0,118100.0,0.28151205]
[1752997379504,1.35068507,118110.0,118100.0,0.28151205]
[1752997380406,1.2229277,118110.0,118100.0,0.29852619]
[1752997380606,1.35068507,118110.0,118100.0,0.29852619]
[1752997381006,1.35068507,118110.0,118100.0,0.30318619]
[1752997381206,1.35068507,118110.0,118100.0,0.17542882]
[1752997381408,1.35068507,118110.0,118100.0,0.30318619]
[1752997381708,0.98988507,118110.0,118100.0,0.43094356]
[1752997382007,1.35068507,118110.0,118100.0,0.17542882]
[1752997382311,1.35068507,118110.0,118100.0,0.43094356]
[1752997382708,1.35068507,118110.0,118100.0,0.17542882]
[1752997382907,1.35068507,118110.0,118100.0,0.30318619]
[1752997383601,1.35068507,118110.0,118100.0,0.17542882]
[1752997383799,1.35068507,118110.0,118100.0,0.30318619]
[1752997384705,1.35068507,118110.0,118100.0,0.02959829]
[1752997384908,1.35068507,118110.0,118100.0,0.07661829]
[1752997385110,1.35068507,118110.0,118100.0,0.20437566]
[1752997385907,1.35068507,118110.0,118090.0,0.05427]
[1752997385908,0.35880281,118100.0,118090.0,0.05427]
[1752997386115,1.05975455,118100.0,118090.0,0.02285]
[1752997387013,0.80423981,118100.0,118090.0,0.02285]
[1752997387211,1.05975455,118100.0,118090.0,0.15360737]
[1752997387408,1.05975455,118100.0,118090.0,0.02585]
[1752997387610,1.05975455,118100.0,118090.0,0.21431398]
[1752997388015,1.05975455,118100.0,118090.0,0.08655661]
[1752997388516,0.93199718,118100.0,118090.0,0.21431398]
[1752997388812,0.93199718,118100.0,118090.0,0.02585]
[1752997389012,1.05975455,118100.0,118090.0,0.15360737]
[1752997389316,1.05975455,118100.0,118090.0,0.02585]
[1752997389517,1.05975455,118100.0,118090.0,0.15360737]
[1752997389518,0.80423981,118100.0,118090.0,0.15360737]
[1752997389719,1.05975455,118100.0,118090.0,0.15360737]
[1752997389911,1.05975455,118100.0,118090.0,0.16191824]
[1752997390215,0.93199718,118100.0,118090.0,0.16191824]
[1752997390415,0.93199718,118100.0,118090.0,0.16391824]
[1752997391317,0.80423981,118100.0,118090.0,0.16391824]
[1752997391510,1.05975455,118100.0,118090.0,0.16391824]
[1752997392316,1.05975455,118100.0,118090.0,0.03616087]
[1752997392515,0.7850753,118100.0,118090.0,0.03616087]
[1752997392818,1.04059004,118100.0,118090.0,0.16391824]
[1752997393018,1.04059004,118100.0,118090.0,0.03616087]
[1752997393417,1.04059004,118100.0,118090.0,0.16391824]
[1752997393914,0.7850753,118100.0,118090.0,0.16391824]
[1752997394219,1.04059004,118100.0,118090.0,0.16391824]
[1752997394419,0.7850753,118100.0,118090.0,0.16391824]
[1752997394719,0.91283267,118100.0,118090.0,0.16391824]
[1752997395110,0.3608,118140.0,118100.0,0.05168]
[1752997395312,0.02258,118160.0,118150.0,0.0831]
[1752997395616,0.02258,118160.0,118150.0,0.93493737]
[1752997395617,0.05628,118160.0,118150.0,0.93493737]
[1752997395811,0.05628,118160.0,118150.0,1.00171925]
[1752997396013,0.0337,118160.0,118150.0,1.29866702]
[1752997396210,0.0337,118160.0,118150.0,1.00171925]
[1752997396410,0.0337,118160.0,118150.0,0.93493737]
[1752997396614,0.0337,118160.0,118150.0,0.9763704]
[1752997396808,0.01899688,118180.0,118170.0,0.2547417]
[1752997397014,0.03812801,118200.0,118190.0,0.2030331]
[1752997397208,0.02042801,118200.0,118190.0,1.14639089]
[1752997397412,0.63222,118210.0,118190.0,0.92557779]
[1752997397609,0.69538,118210.0,118200.0,0.61645779]
[1752997397815,0.08574,118210.0,118200.0,0.61645779]
[1752997398320,0.69522,118210.0,118200.0,0.61645779]
[1752997398917,0.69522,118210.0,118200.0,0.44638]
[1752997400021,0.69622,118210.0,118200.0,0.44638]
[1752997400417,0.69722,118210.0,118200.0,0.44638]
[1752997400617,0.69634,118210.0,118200.0,0.44638]
[1752997400818,0.69634,118210.0,118200.0,0.61645779]
[1752997401018,0.08774,118210.0,118200.0,0.61645779]
[1752997401213,0.69634,118210.0,118200.0,0.61645779]
[1752997401515,0.69634,118210.0,118200.0,0.44638]
[1752997402519,0.69634,118210.0,118200.0,0.6154988]
[1752997405821,0.69634,118210.0,118200.0,0.44638]
[1752997406223,0.8654445,118210.0,118200.0,0.44638]
[1752997406521,0.69634,118210.0,118200.0,0.44638]
[1752997407017,0.86641779,118210.0,118200.0,0.44638]
[1752997407220,0.69634,118210.0,118200.0,0.44638]
[1752997408719,0.8654445,118210.0,118200.0,0.44638]
[1752997409024,1.03552229,118210.0,118200.0,0.44638]
[1752997410024,0.8654445,118210.0,118200.0,0.44638]
[1752997410922,0.8650045,118210.0,118200.0,0.44638]
[1752997413028,1.03508229,118210.0,118200.0,0.44638]
[1752997413329,0.8650045,118210.0,118200.0,0.44638]
[1752997413528,1.03508229,118210.0,118200.0,0.44638]
[1752997414023,0.8650045,118210.0,118200.0,0.44638]
[1752997414223,0.8650045,118210.0,118200.0,0.80718]
[1752997415933,0.8650045,118210.0,118200.0,0.80929]
[1752997418133,0.8650045,118210.0,118200.0,0.82611369]
[1752997420423,1.03508229,118210.0,118200.0,0.82611369]
[1752997421631,0.8650045,118210.0,118200.0,0.82611369]
[1752997422131,1.03508229,118210.0,118200.0,0.82611369]
[1752997423732,1.03508229,118210.0,118200.0,0.46531369]
[1752997424230,1.03508229,118210.0,118200.0,0.44849]
[1752997425532,0.8650045,118210.0,118200.0,0.44849]
[1752997426038,1.03508229,118210.0,118200.0,0.44849]
[1752997426435,0.8650045,118210.0,118200.0,0.44849]
[1752997426938,1.03508229,118210.0,118200.0,0.44849]
[1752997427335,0.8650045,118210.0,118200.0,0.44849]
[1752997427537,1.03508229,118210.0,118200.0,0.44849]
[1752997429229,0.0197,118210.0,118200.0,0.6176088]
[1752997429435,1.05122771,118210.0,118200.0,0.44849]
[1752997429635,0.88114992,118210.0,118200.0,0.44849]
[1752997430135,1.05122771,118210.0,118200.0,0.44849]
[1752997431839,1.05122771,118210.0,118200.0,0.49351048]
[1752997432039,1.05122771,118210.0,118200.0,0.44849]
[1752997433339,0.88114992,118210.0,118200.0,0.44849]
[1752997433639,1.05122771,118210.0,118200.0,0.49351048]
[1752997435241,0.88114992,118210.0,118200.0,0.49351048]
[1752997435442,1.05122771,118210.0,118200.0,0.49351048]
[1752997437541,1.05122771,118210.0,118200.0,0.44849]
[1752997437745,0.88114992,118210.0,118200.0,0.44849]
[1752997437942,0.88114992,118210.0,118200.0,0.49351048]
[1752997437943,1.05122771,118210.0,118200.0,0.49351048]
[1752997439442,0.88114992,118210.0,118200.0,0.49351048]
[1752997440743,0.88114992,118210.0,118200.0,0.66262928]
[1752997441045,0.88114992,118210.0,118200.0,0.49351048]
[1752997441644,0.88338992,118210.0,118200.0,0.83270707]
[1752997441945,0.27346992,118210.0,118200.0,0.66262928]
[1752997442242,0.88310992,118210.0,118200.0,0.66262928]
[1752997442944,0.88310992,118210.0,118200.0,0.49351048]
[1752997443444,1.05318771,118210.0,118200.0,0.49351048]
[1752997443940,0.88310992,118210.0,118200.0,0.49351048]
[1752997444142,1.05298771,118210.0,118200.0,0.49351048]
[1752997445542,0.88290992,118210.0,118200.0,0.49351048]
[1752997445743,1.05298771,118210.0,118200.0,0.49351048]
[1752997446146,0.88290992,118210.0,118200.0,0.49351048]
[1752997446350,1.03590229,118210.0,118200.0,0.49351048]
[1752997448242,1.03590229,118210.0,118200.0,0.44849]
[1752997448645,1.05298228,118210.0,118200.0,0.40833369]
[1752997448948,1.05298355,118210.0,118200.0,0.40833369]
[1752997449448,1.05298355,118210.0,118200.0,0.36291]
[1752997449648,1.0529836,118210.0,118200.0,0.36291]
[1752997450750,1.0529836,118210.0,118200.0,0.38721]
[1752997451049,1.0529836,118210.0,118200.0,0.40987]
[1752997451344,0.88290581,118210.0,118200.0,0.40987]
[1752997451547,1.0529836,118210.0,118200.0,0.47120369]
[1752997451850,0.27346581,118210.0,118200.0,0.49485369]
[1752997452153,0.88250581,118210.0,118200.0,0.49485369]
[1752997452541,1.0525836,118210.0,118200.0,0.49485369]
[1752997453443,1.03550229,118210.0,118200.0,0.49485369]
[1752997454457,0.2563845,118210.0,118200.0,0.49485369]
[1752997454752,0.8138245,118210.0,118200.0,0.49485369]
[1752997455057,0.64468,118210.0,118200.0,0.78862659]
[1752997455749,0.8137845,118210.0,118200.0,0.44943]
[1752997458055,0.2046245,118210.0,118200.0,0.44943]
[1752997458353,0.2046245,118210.0,118200.0,0.51013661]
[1752997458354,0.8136245,118210.0,118200.0,0.51013661]
[1752997459253,0.8406545,118210.0,118200.0,0.51013661]
[1752997459847,0.8406545,118210.0,118200.0,0.67925541]
[1752997462756,0.2316545,118210.0,118200.0,0.51013661]
[1752997462951,0.8650045,118210.0,118200.0,0.51013661]
[1752997464558,0.2564845,118210.0,118200.0,0.51013661]
[1752997464761,0.8645645,118210.0,118200.0,0.51013661]
[1752997465858,0.8645645,118210.0,118200.0,0.67925541]
[1752997467862,0.69546,118210.0,118200.0,0.67925541]
[1752997468063,0.8645645,118210.0,118200.0,0.67925541]
[1752997468963,0.99212032,118210.0,118200.0,0.80681123]
[1752997469563,0.8645645,118210.0,118200.0,0.80681123]
[1752997470067,0.99212032,118210.0,118200.0,0.80681123]
[1752997470567,0.8645645,118210.0,118200.0,0.80681123]
[1752997470764,0.99212032,118210.0,118200.0,0.80681123]
[1752997471263,0.38404032,118210.0,118200.0,0.80681123]
[1752997471466,0.99204032,118210.0,118200.0,0.80681123]
[1752997474968,0.8644845,118210.0,118200.0,1.16761123]
[1752997475269,0.99204032,118210.0,118200.0,1.16761123]
[1752997476372,0.8644845,118210.0,118200.0,1.16761123]
[1752997476873,0.99204032,118210.0,118200.0,1.16761123]
[1752997477372,0.38404032,118210.0,118200.0,1.04005541]
[1752997477572,0.99116032,118210.0,118200.0,1.16761123]
[1752997478276,0.99116032,118210.0,118200.0,1.04005541]
[1752997478467,0.99116032,118210.0,118200.0,1.16761123]
[1752997478975,0.99052032,118210.0,118200.0,1.16761123]
[1752997481370,0.002,118210.0,118200.0,1.29516705]
[1752997481573,0.98827462,118230.0,118220.0,0.08181]
[1752997481777,1.00566867,118230.0,118220.0,0.80799]
[1752997482077,1.00566867,118230.0,118220.0,0.82491096]
[1752997482275,0.64124,118230.0,118220.0,1.19090235]
[1752997482474,0.76879582,118230.0,118220.0,1.19090235]
[1752997482674,0.81959582,118230.0,118220.0,1.20624208]
[1752997482976,0.69204,118230.0,118220.0,1.07868626]
[1752997483173,0.08632,118230.0,118220.0,1.07868626]
[1752997483370,0.69192,118230.0,118220.0,1.07868626]
[1752997483570,0.69192,118230.0,118220.0,1.08079626]
[1752997483777,0.69392,118230.0,118220.0,1.08079626]
[1752997484176,0.08832,118230.0,118220.0,1.08079626]
[1752997484377,0.69372,118230.0,118220.0,1.08079626]
[1752997484978,0.69372,118230.0,118220.0,1.14150287]
[1752997486078,0.8627959,118230.0,118220.0,1.14150287]
[1752997487079,0.8657959,118230.0,118220.0,1.14150287]
[1752997487278,0.8657959,118230.0,118220.0,1.08079626]
[1752997490085,0.8657959,118230.0,118220.0,0.91170606]
[1752997491084,1.0358208,118230.0,118220.0,0.91170606]
[1752997491888,0.8639559,118230.0,118220.0,1.08079626]
[1752997492582,0.8639559,118230.0,118220.0,0.91170606]
[1752997494189,0.8639559,118230.0,118220.0,1.08079626]
[1752997494787,0.8639559,118230.0,118220.0,0.91170606]
[1752997495389,0.8639559,118230.0,118220.0,0.19010606]
[1752997495584,0.8639559,118230.0,118220.0,0.91170606]
[1752997496984,0.02397,118230.0,118220.0,1.25082106]
[1752997497189,1.3450467,118270.0,118220.0,1.25082106]
[1752997497190,0.02365,118290.0,118280.0,0.03365]
[1752997497384,0.3301647,118300.0,118280.0,0.39935]
[1752997497587,0.3902627,118300.0,118290.0,0.3608]
[1752997497785,0.5180406,118300.0,118290.0,0.40957]
[1752997497991,0.2223249,118300.0,118290.0,0.44812]
[1752997498185,0.3629008,118300.0,118290.0,0.47495581]
[1752997498380,0.9659008,118300.0,118290.0,0.47495581]
[1752997498580,0.9832908,118300.0,118290.0,0.47495581]
[1752997498880,0.22915699,118300.0,118290.0,0.44812]
[1752997499081,0.04754109,118300.0,118290.0,0.44812]
[1752997499288,0.04279109,118300.0,118290.0,0.789245]
[1752997499986,0.21176699,118300.0,118290.0,0.789245]
[1752997500190,0.005,118300.0,118290.0,0.47746413]
[1752997500487,0.1762659,118300.0,118290.0,0.64748903]
[1752997500692,0.1976259,118300.0,118290.0,0.68881813]
[1752997500991,0.3676508,118300.0,118290.0,0.85780833]
[1752997501192,0.3676508,118300.0,118290.0,0.75737311]
[1752997502085,0.1996259,118300.0,118290.0,0.75737311]
[1752997502295,0.3696508,118300.0,118290.0,0.75737311]
[1752997502487,0.2122659,118300.0,118290.0,0.75737311]
[1752997502688,0.3802908,118300.0,118290.0,0.75737311]
[1752997502984,0.3822908,118300.0,118290.0,0.75737311]
[1752997504293,0.9840508,118300.0,118290.0,0.73013898]
[1752997504996,0.9840508,118300.0,118290.0,0.661584]
[1752997505892,0.9840508,118300.0,118290.0,0.659284]
[1752997506893,0.9840508,118300.0,118290.0,0.262234]
[1752997507100,0.9840508,118300.0,118290.0,0.623034]
[1752997507694,0.9840508,118300.0,118290.0,0.627934]
[1752997508598,0.9840508,118300.0,118290.0,0.237534]
[1752997509086,0.9840508,118300.0,118290.0,0.262234]
[1752997510799,0.9840508,118300.0,118290.0,0.298484]
[1752997510995,0.9840508,118300.0,118290.0,0.300784]
[1752997513697,0.9840508,118300.0,118290.0,0.298484]
[1752997514401,0.9840508,118300.0,118290.0,0.262234]
[1752997514793,0.2313502,118290.0,118280.0,0.0247]
[1752997514997,0.4061251,118290.0,118280.0,0.0247]
[1752997515701,0.1856144,118280.0,118270.0,0.38102]
[1752997515902,0.1856144,118280.0,118270.0,0.42405]
[1752997515903,1.01312472,118280.0,118270.0,0.42405]
[1752997516103,0.42512472,118280.0,118270.0,0.40572]
[1752997516403,0.2361287,118270.0,118260.0,0.43594427]
[1752997516597,0.4061536,118270.0,118260.0,0.43594427]
[1752997516796,0.4061536,118270.0,118260.0,0.46001427]
[1752997516997,0.4061536,118270.0,118260.0,0.45790427]
[1752997517999,0.4061536,118270.0,118260.0,0.641144]
[1752997518505,0.4061536,118270.0,118260.0,0.657174]
[1752997518705,0.4091536,118270.0,118260.0,0.657174]
[1752997518899,0.4111536,118270.0,118260.0,0.657174]
[1752997521010,0.4111536,118270.0,118260.0,0.659474]
[1752997521210,0.2411287,118270.0,118260.0,0.659474]
[1752997521410,0.4111536,118270.0,118260.0,0.659474]
[1752997522012,0.2411287,118270.0,118260.0,0.659474]
[1752997522211,0.4111536,118270.0,118260.0,0.659474]
[1752997523611,0.4111536,118270.0,118260.0,0.298674]
[1752997523811,0.4111536,118270.0,118260.0,0.659474]
[1752997524711,0.4111536,118270.0,118260.0,0.298674]
[1752997525010,0.4111536,118270.0,118260.0,0.659474]
[1752997530420,1.0103536,118270.0,118260.0,0.659474]
[1752997530919,0.8402487,118270.0,118260.0,0.659474]
[1752997531121,1.0102336,118270.0,118260.0,0.659474]
[1752997532720,1.0102336,118270.0,118260.0,0.298674]
[1752997533025,1.0102336,118270.0,118260.0,0.659474]
[1752997535520,0.4111536,118270.0,118260.0,0.659474]
[1752997535722,1.0092736,118270.0,118260.0,0.659474]
[1752997536126,0.4111536,118270.0,118260.0,0.659474]
[1752997536328,1.0101536,118270.0,118260.0,0.659474]
[1752997537724,1.0101536,118270.0,118260.0,0.298674]
[1752997538030,1.0101536,118270.0,118260.0,0.659474]
[1752997538217,1.0101536,118270.0,118260.0,0.643444]
[1752997538530,1.0101536,118270.0,118260.0,0.659994]
[1752997539827,1.0101536,118270.0,118260.0,0.299194]
[1752997540129,1.0101536,118270.0,118260.0,0.659994]
[1752997540729,0.4111536,118270.0,118260.0,0.659994]
[1752997541030,1.0094736,118270.0,118260.0,0.659994]
[1752997541525,0.1929187,118270.0,118260.0,0.8300189]
[1752997541730,0.005,118270.0,118260.0,1.3598518]
[1752997541928,0.01898542,118280.0,118270.0,0.1690187]
[1752997542229,0.01898542,118280.0,118270.0,0.7877336]
[1752997542526,1.20683962,118280.0,118270.0,0.035]
[1752997542729,1.05418602,118280.0,118270.0,0.035]
[1752997542929,1.03681472,118280.0,118270.0,0.3958]
[1752997543226,0.43877472,118280.0,118270.0,0.3968]
[1752997543829,1.05510854,118280.0,118270.0,0.3958]
[1752997544030,1.05610854,118280.0,118270.0,0.3958]
[1752997544231,0.45714854,118280.0,118270.0,0.3968]
[1752997544434,1.05610854,118280.0,118270.0,0.44424]
[1752997544730,1.05610854,118280.0,118270.0,0.44324]
[1752997544931,1.05910854,118280.0,118270.0,0.44324]
[1752997545327,1.05910854,118280.0,118270.0,0.654594]
[1752997545626,1.05910854,118280.0,118270.0,0.656704]
[1752997546532,0.46014854,118280.0,118270.0,0.662154]
[1752997546735,0.41783472,118280.0,118270.0,0.662154]
[1752997547035,1.01619472,118280.0,118270.0,0.662154]
[1752997547226,1.04113472,118280.0,118270.0,0.662154]
[1752997548435,1.03773472,118280.0,118270.0,0.662154]
[1752997548629,1.03773472,118280.0,118270.0,0.656704]
[1752997549134,1.03673472,118280.0,118270.0,0.656704]
[1752997553137,1.03773472,118280.0,118270.0,0.656704]
[1752997553540,1.03973472,118280.0,118270.0,0.656704]
[1752997555540,1.03973472,118280.0,118270.0,0.654594]
[1752997556036,1.03973472,118280.0,118270.0,0.628464]
[1752997556242,1.20975962,118280.0,118270.0,0.211354]
[1752997556838,0.1851586,118270.0,118260.0,0.02348]
[1752997557043,0.49529848,118270.0,118260.0,0.02348]
[1752997557240,0.2582929,118260.0,118250.0,0.46954985]
[1752997557544,1.0254378,118260.0,118250.0,0.46954985]
[1752997560146,1.0254378,118260.0,118250.0,0.68190385]
[1752997560847,1.0254378,118260.0,118250.0,0.68090385]
[1752997562344,1.0254378,118260.0,118250.0,0.68659385]
[1752997563545,1.04281852,118260.0,118250.0,0.68659385]
[1752997563849,1.04281852,118260.0,118250.0,0.68090385]
[1752997564251,0.9843978,118260.0,118250.0,0.68659385]
[1752997564749,1.0005378,118260.0,118250.0,0.68659385]
[1752997564947,0.8305129,118260.0,118250.0,0.68659385]
[1752997565148,1.0005378,118260.0,118250.0,0.68649234]
[1752997565350,1.0245178,118260.0,118250.0,0.68649234]
[1752997566352,1.0245178,118260.0,118250.0,0.68749234]
[1752997566653,0.8544929,118260.0,118250.0,0.68749234]
[1752997566855,1.0245178,118260.0,118250.0,0.68749234]
[1752997567254,1.0245178,118260.0,118250.0,0.68849234]
[1752997570864,0.8544929,118260.0,118250.0,0.68849234]
[1752997571264,1.0245178,118260.0,118250.0,0.68849234]
[1752997572366,0.8544929,118260.0,118250.0,0.68849234]
[1752997572566,1.0245178,118260.0,118250.0,0.68849234]
[1752997575172,1.0245178,118260.0,118250.0,0.68280234]
[1752997575374,0.8544929,118260.0,118250.0,0.68280234]
[1752997575674,1.0245178,118260.0,118250.0,0.68280234]
[1752997576177,0.4283178,118260.0,118250.0,0.68280234]
[1752997576574,0.8549329,118260.0,118250.0,0.68280234]
[1752997576874,1.0249578,118260.0,118250.0,0.68280234]
[1752997577180,1.10986212,118260.0,118250.0,0.68280234]
[1752997578770,1.10986212,118260.0,118250.0,0.68180234]
[1752997579976,1.10986212,118260.0,118250.0,0.68649234]
[1752997581688,1.10986212,118260.0,118250.0,0.81395695]
[1752997582173,1.10986212,118260.0,118250.0,0.81606695]
[1752997582374,0.98239751,118260.0,118250.0,0.81606695]
[1752997582571,1.10986212,118260.0,118250.0,0.81606695]
[1752997583082,1.10986212,118260.0,118250.0,0.68860234]
[1752997583476,1.10986212,118260.0,118250.0,0.81606695]
[1752997583682,1.10986212,118260.0,118250.0,0.81706695]
[1752997584177,1.10986212,118260.0,118250.0,0.75030895]
[1752997584374,1.10986212,118260.0,118250.0,0.87777356]
[1752997585886,1.10986212,118260.0,118250.0,0.87877356]
[1752997586288,0.8549329,118260.0,118250.0,0.87877356]
[1752997586880,1.10986212,118260.0,118250.0,0.87877356]
[1752997587379,1.10986212,118260.0,118250.0,0.75130895]
[1752997587587,0.91717751,118260.0,118250.0,1.04782076]
[1752997587886,0.91725751,118260.0,118250.0,1.04782076]
[1752997588488,0.93989751,118260.0,118250.0,1.04782076]
[1752997588989,0.8124329,118260.0,118250.0,0.92035615]
[1752997589492,0.8124329,118260.0,118250.0,0.91824615]
[1752997590887,0.8124329,118260.0,118250.0,0.92035615]
[1752997591389,0.8275629,118260.0,118250.0,0.92035615]
[1752997591584,0.2310429,118260.0,118250.0,0.92035615]
[1752997591788,0.8276029,118260.0,118250.0,0.92035615]
[1752997592088,0.8275229,118260.0,118250.0,0.92035615]
[1752997593183,0.2310429,118260.0,118250.0,0.92035615]
[1752997593388,0.8274829,118260.0,118250.0,0.92035615]
[1752997593888,0.2310429,118260.0,118250.0,0.92035615]
[1752997594090,0.8272429,118260.0,118250.0,1.09028158]
[1752997595890,0.8272429,118260.0,118250.0,0.92035615]
[1752997596685,0.8510929,118260.0,118250.0,0.92035615]
[1752997600286,0.8510929,118260.0,118250.0,0.75130895]
[1752997600793,0.8510929,118260.0,118250.0,0.92035615]
[1752997600991,0.42481833,118260.0,118250.0,0.92035615]
[1752997601290,1.02069833,118260.0,118250.0,0.75130895]
[1752997601786,1.03947774,118260.0,118250.0,0.75130895]
[1752997602494,0.86955231,118260.0,118250.0,0.75130895]
[1752997602790,1.03947774,118260.0,118250.0,0.75130895]
[1752997603086,0.86955231,118260.0,118250.0,0.75130895]
[1752997603293,0.2548929,118260.0,118250.0,0.92035615]
[1752997603491,0.42481833,118260.0,118250.0,0.92035615]
[1752997603993,0.2548929,118260.0,118250.0,0.92035615]
[1752997604193,0.42481833,118260.0,118250.0,0.92035615]
[1752997605194,0.2159129,118260.0,118250.0,0.92035615]
[1752997605396,0.2159129,118260.0,118250.0,1.51727615]
[1752997605690,0.42481833,118260.0,118250.0,0.75130895]
[1752997606589,0.2548929,118260.0,118250.0,0.75130895]
[1752997606789,0.42481833,118260.0,118250.0,0.75130895]
[1752997606995,0.2548929,118260.0,118250.0,0.92035615]
[1752997607296,0.42481833,118260.0,118250.0,0.75130895]
[1752997608196,0.2548929,118260.0,118250.0,0.92035615]
[1752997608391,0.2548929,118260.0,118250.0,0.75130895]
[1752997608592,0.2548929,118260.0,118250.0,0.92035615]
[1752997608792,0.42481833,118260.0,118250.0,0.92035615]
[1752997608992,0.2548929,118260.0,118250.0,0.92035615]
[1752997609194,0.42481833,118260.0,118250.0,0.75130895]
[1752997609389,0.2548929,118260.0,118250.0,0.75130895]
[1752997609595,0.2548929,118260.0,118250.0,0.92035615]
[1752997609796,0.42481833,118260.0,118250.0,0.92035615]
[1752997610393,0.2548929,118260.0,118250.0,0.75130895]
[1752997610600,0.42481833,118260.0,118250.0,0.75130895]
[1752997610796,0.2548929,118260.0,118250.0,0.75130895]
[1752997610997,0.5097983,118260.0,118250.0,0.87876165]
[1752997611197,0.2548929,118260.0,118250.0,0.75130895]
[1752997611503,1.1068383,118260.0,118250.0,0.87876165]
[1752997612003,0.8519329,118260.0,118250.0,0.87876165]
[1752997612202,0.8519329,118260.0,118250.0,0.75130895]
[1752997612401,1.1068383,118260.0,118250.0,0.87876165]
[1752997613503,0.8519329,118260.0,118250.0,0.75130895]
[1752997613702,1.1068383,118260.0,118250.0,0.87876165]
[1752997614001,0.5097983,118260.0,118250.0,1.04780885]
[1752997614198,1.1071983,118260.0,118250.0,1.04780885]
[1752997614502,0.8522929,118260.0,118250.0,1.04780885]
[1752997614703,1.1071983,118260.0,118250.0,1.04780885]
[1752997615299,1.1071983,118260.0,118250.0,0.75130895]
[1752997616003,1.1071983,118260.0,118250.0,0.87876165]